Cogmind - Beta 15 @@@ ROGUE MODE // 2025.08.28 @ 20:20:23 Player: opaguck Result: Destroyed by G-47 Trooper with Particle Gun Performance ------------- Evolutions (3) 1500 Regions Visited (6) 1200 Robots Destroyed (18) 90 Value Destroyed (380) 380 Prototype IDs (26) 520 Alien Tech Used (0) 0 Bonus (368) 368 TOTAL SCORE: 4058 Bonus ------- Follower Combat Kills 68 Aligned with FarCom 300 Cogmind --------- Core Integrity 0/700 Matter 277/300 Energy 99/100 System Corruption 2% Temperature Cool (9) Movement Core (50) Location -7/Factory Parts ------- > --- POWER (2) -------- (None) > --- PROPULSION (3) --- (None) > --- UTILITY (5) ------ Advanced Visual Processing Unit Advanced Targeting Computer Advanced ECM Suite > --- WEAPON (3) ------- (None) > --- INVENTORY (5) ---- Advanced Targeting Computer Improved Shield Generator Gauss Cannon Peak State ------------ > --- POWER ------------ Nuclear Core > --- PROPULSION ------- Armored Wheel Armored Huge Wheel > --- UTILITY ---------- Advanced Visual Processing Unit Targeting Computer Hardened Medium Armor Plating Hardened Medium Armor Plating Trap Reconfigurator > --- WEAPON ----------- Cooled Pulse Rifle Ion Cannon Ion Cannon > --- INVENTORY -------- Cesium-ion Thruster Advanced ECM Suite Improved Light Armor Plating [Rating: 44] Favorites ----------- Power Improved Ion Engine Engine Improved Ion Engine Power Core Nuclear Core Propulsion Wheel Leg Aluminum Leg Wheel Wheel Hover Unit Gravmag System Flight Unit Cesium-ion Thruster Utility Improved Terrain Scanner Device Improved Terrain Scanner Processor Advanced Visual Processing Unit Protection Improved Light Armor Plating Weapon Field Laser Energy Gun Field Laser Energy Cannon Ion Cannon Ballistic Gun Assault Rifle Build | -11 -10 -10 -10 -9 -8 -7 ------- Run | Yrd Mat Min Exi Min Mat Fac Slots Evolved 6 | . . . . . 4 2 Power 1 | . . . . . 1 . Propulsion 1 | . . . . . 1 . Utility 3 | . . . . . 1 2 Weapon 1 | . . . . . 1 . Parts Attached 51 | 6 1 7 1 . 16 20 Power 6 | . 1 1 . . 2 2 Engine 3 | . 1 1 . . 1 . Core 3 | . . . . . 1 2 Reactor . | . . . . . . . Propulsion 16 | 2 . 4 . . 3 7 Treads . | . . . . . . . Leg 5 | 2 . 2 . . 1 . Wheel 8 | . . 2 . . 2 4 Hover 2 | . . . . . . 2 Flight 1 | . . . . . . 1 Utility 14 | 2 . . 1 . 3 8 Device 5 | 2 . . 1 . 1 1 Storage . | . . . . . . . Processor 4 | . . . . . . 4 Hackware . | . . . . . . . Protection 5 | . . . . . 2 3 Artifact . | . . . . . . . Weapon 15 | 2 . 2 . . 8 3 Energy Gun 8 | 1 . 2 . . 4 1 Energy Cannon 4 | . . . . . 4 . Ballistic Gun 3 | 1 . . . . . 2 Ballistic Cannon . | . . . . . . . Launcher . | . . . . . . . Special Weapon . | . . . . . . . Impact Weapon . | . . . . . . . Slashing Weapon . | . . . . . . . Piercing Weapon . | . . . . . . . Special Melee Weapon . | . . . . . . . Unidentified Prototypes 4 | . . . 1 . 2 1 Parts Lost 26 | . 1 1 . . 1 23 Power 3 | . . . . . . 3 Propulsion 10 | . . . . . 1 9 Utility 6 | . . . . . . 6 Weapon 7 | . 1 1 . . . 5 Highest Loss Streak 7 | . 1 1 . . 1 7 To Critical Strikes 1 | . . . . . . 1 Average Backups 4 | 1 3 4 5 5 4 3 Power . | . . . . . . . Propulsion . | . 2 2 . . . . Utility 2 | . . 2 5 5 3 2 Weapon . | . . . . . . . Tool/Special . | . . . . . . . Unused Backups 7 | . . . . . 4 3 Power . | . . . . . . . Propulsion . | . . . . . . . Utility 6 | . . . . . 4 2 Weapon 1 | . . . . . . 1 Tool/Special . | . . . . . . . Average Slot Usage (%) 85 | . 94 91 100 100 90 66 Engine 7 | . 9 14 14 14 8 . Core 3 | . . . . . 6 4 Leg 5 | . 28 24 . . 1 . Wheel 14 | . . 3 28 28 20 10 Device 19 | . 28 28 28 28 18 10 Processor 4 | . . . . . . 16 Protection 5 | . . . . . 8 6 Energy Gun 11 | . 13 6 14 14 16 5 Energy Cannon 5 | . . . . . 9 7 Ballistic Gun 5 | . 14 14 14 14 . . Peak Build Rating 44 | 8 9 11 19 19 36 44 Average Rating 23 | 2 8 9 12 19 32 30 On Entrance 13 | . 8 8 11 19 19 31 Naked Turns . | . . . . . . . Heaviest Build 35 | 6 9 14 14 14 35 32 Greatest Support 40 | 20 20 20 20 20 32 40 Greatest Overweight (x) 6 | . . . . . 1 6 Average Overweight (x) . | . . . . . . . Largest Inventory Capacity 5 | 5 5 5 5 5 5 5 Average Capacity 5 | 5 5 5 5 5 5 5 Most Carried 5 | 4 5 5 5 5 5 5 Average Carried 4 | 1 3 4 5 5 4 3 Final Capacity 5 | 5 5 5 5 5 5 5 Final Carried 5 | 3 5 5 5 5 2 3 Class Distribution -------------------- 47% | Skirmisher 31% | Mutant 18% | Scavenger-Mutant Dominant Class ---------------- Mutant | -10/Materials Scavenger-Mutant | -10/Mines Scavenger-Mutant | -10/Exiles Skirmisher | -9/Mines Skirmisher | -8/Materials Mutant | -7/Factory Resources | -11 -10 -10 -10 -9 -8 -7 ----------- Run | Yrd Mat Min Exi Min Mat Fac Matter Collected 622 | 260 28 68 . . 162 104 Remotely . | . . . . . . . Salvage Created 551 | 110 89 . . . 267 85 Parts 36 | 4 4 . . . 23 5 Haulers Intercepted . | . . . . . . . Recyclers Shooed . | . . . . . . . Parts Field Recycled . | . . . . . . . Retrieved Matter . | . . . . . . . Parts Self-Destructed . | . . . . . . . Prevented . | . . . . . . . Kills | -11 -10 -10 -10 -9 -8 -7 ------- Run | Yrd Mat Min Exi Min Mat Fac Combat Hostiles Destroyed 10 | . 2 . . . 7 1 Guns 9 | . 2 . . . 6 1 Cannons 1 | . . . . . 1 . Classes Destroyed 9 | 2 1 . . . 5 1 Worker 1 | . . . . . . 1 Builder 1 | . . . . . 1 . Tunneler 1 | 1 . . . . . . Recycler 1 | 1 . . . . . . Operator 1 | . . . . . 1 . Watcher 3 | . . . . . 2 1 Swarmer 6 | . . . . . 5 1 Grunt 3 | . 2 . . . 1 . Hunter 1 | . . . . . 1 . Best Kill Streak 2 | 2 2 . . . 2 1 Combat Bots Only 2 | . 2 . . . 2 1 Max Kills in Single Turn 1 | 1 1 . . . 1 1 Gunslinging . | . . . . . . . Exploded . | . . . . . . . Melee . | . . . . . . . Uniques/NPCs Destroyed . | . . . . . . . Combat | -11 -10 -10 -10 -9 -8 -7 -------- Run | Yrd Mat Min Exi Min Mat Fac Hostile Shots Fired 471 | . 45 15 . . 56 355 Missed 166 | . 16 3 . . 14 133 Hits 305 | . 29 12 . . 42 222 Projectile 305 | . 29 12 . . 42 222 Critical Strikes 7 | . 1 . . . 1 5 Damage Taken 4127 | 11 305 136 . . 496 3179 Core 888 | . 93 23 . . 61 711 Absorbed by Shields . | . . . . . . . Regen/Repaired (Parts) 151 | . . . . . . 151 Core Remaining (%) 80 | 100 . . . 53 88 . Volleys Fired 45 | 4 6 1 . . 22 12 Largest 3 | 1 2 1 . . 3 3 Hottest 189 | 40 60 20 . . 189 175 Shots Fired 108 | 4 12 1 . . 58 33 Gun 74 | 4 12 1 . . 41 16 Cannon 34 | . . . . . 17 17 Launcher . | . . . . . . . Special . | . . . . . . . Kinetic 11 | . 6 1 . . . 4 Thermal 76 | . . . . . 47 29 Explosive . | . . . . . . . Electromagnetic 21 | 4 6 . . . 11 . Robot Hit Streak 10 | 4 5 . . . 10 3 Robot Miss Streak 5 | . 1 . . . 5 2 Penetration Max . | . . . . . . . Secondary Targets . | . . . . . . . Shots Hit Robots 58 | 4 8 . . . 30 16 Core Hits 26 | 3 4 . . . 13 6 Critical Kills . | . . . . . . . Critical Parts Destroyed . | . . . . . . . Critical Strikes 1 | . . . . . 1 . Burn 1 | . . . . . 1 . Melee Attacks . | . . . . . . . Impact . | . . . . . . . Slashing . | . . . . . . . Piercing . | . . . . . . . Sneak Attacks . | . . . . . . . Combat Hostiles . | . . . . . . . Follow-up Attacks . | . . . . . . . Damage Inflicted 1324 | 78 107 2 . . 748 389 Guns 675 | 52 107 . . . 395 121 Cannons 505 | . . . . . 245 260 Explosions 58 | 26 . . . . 32 . Melee . | . . . . . . . Ramming 86 | . . 2 . . 76 8 Kinetic 54 | . 37 . . . . 17 Thermal 841 | 26 . . . . 451 364 Explosive . | . . . . . . . Electromagnetic 343 | 52 70 . . . 221 . Impact . | . . . . . . . Slashing . | . . . . . . . Piercing . | . . . . . . . Highest Corruption 2 | . . . . . . 2 Average Corruption 1 | . . . . . . 1 Corruption Purged . | . . . . . . . Corruption Blocked . | . . . . . . . Effects 4 | . . . . . . 4 Message Errors 1 | . . . . . . 1 Heat Flow Errors 1 | . . . . . . 1 Parts Fused 1 | . . . . . . 1 Misfires 1 | . . . . . . 1 Overload Shots . | . . . . . . . Overflow Damage 7 | . . . . . 5 2 Projectiles 7 | . . . . . 5 2 Explosions . | . . . . . . . Melee . | . . . . . . . Knockbacks 1 | . . . . . 1 . Impact 1 | . . . . . 1 . Kinetic . | . . . . . . . Secondary . | . . . . . . . Self-Inflicted Damage 51 | 11 . . . . 36 4 Shots 1 | 1 . . . . . . Rammed 7 | . . . . . 6 1 Targets Rammed 8 | . . 1 . . 6 1 Kicked 1 | . . 1 . . . . Crushed . | . . . . . . . Highest Temperature 487 | 7 36 . . . 487 214 Average Temperature 140 | 4 20 . . . 175 84 Received Heat Transfer 1161 | . 120 72 . . 54 915 Effects 10 | . . . . . 10 . Shutdowns 3 | . . . . . 3 . Energy Bleed 3 | . . . . . 3 . Interference 3 | . . . . . 3 . Damage (minor) 1 | . . . . . 1 . Siege Activations . | . . . . . . . Martial Activations . | . . . . . . . Shielding Activations . | . . . . . . . Robots Disrupted . | . . . . . . . Combat Hostiles . | . . . . . . . Robots Corrupted . | . . . . . . . Combat Hostiles . | . . . . . . . Parts Fried 1 | . . . . . 1 . Impact Corruptions . | . . . . . . . Robots Melted . | . . . . . . . Combat Hostiles . | . . . . . . . Parts Melted . | . . . . . . . Heat Transferred 1580 | 50 . . . . 975 555 Parts Sabotaged . | . . . . . . . Parts Stolen . | . . . . . . . Parts Stripped . | . . . . . . . Power Chain Reactions 2 | 1 . . . . 1 . Alert | -11 -10 -10 -10 -9 -8 -7 ------- Run | Yrd Mat Min Exi Min Mat Fac Maximum Alert Level . | . . . . . . . Low Security (%) 100 | 100 100 100 . 100 100 100 Level 1 . | . . . . . . . Level 2 . | . . . . . . . Level 3 . | . . . . . . . Level 4 . | . . . . . . . Level 5 . | . . . . . . . High Security . | . . . . . . . Max Security . | . . . . . . . Peak Influence 149 | 10 41 15 . . 104 149 Initial 45 | . . . . . . 45 Average 20 | . 9 . . . 16 38 Influence Increases 784 | 10 51 15 . . 263 445 Destroy 0b10 Robot/C 240 | . 40 . . . 180 20 Destroy 0b10 Robot/NC 40 | 10 . . . . 20 10 Destroy Leader 56 | . 10 . . . 44 2 Allied During Kill 7 | . . . . . 7 . Trap Triggered on 0b10 30 | . . . . . . 30 Successful Hack 13 | . . . . . 5 8 Disable Machine 15 | . . . . . . 15 Destroy Structure 8 | . 1 . . . 7 . Lose Combat Pursuer 375 | . . 15 . . . 360 Influence Decreases 706 | 10 51 15 . . 163 467 Entered New Map 55 | . . . . . . 55 Time Decay 444 | 10 50 15 . . 125 244 Lost Part 179 | . 1 . . . 10 168 Lost Ally 28 | . . . . . 28 . Squads Dispatched 11 | . 1 . . . 5 5 Investigation 3 | . 1 . . . . 2 Extermination 2 | . . . . . . 2 Reinforcement 3 | . . . . . 2 1 Assault . | . . . . . . . Garrison 3 | . . . . . 3 . Intercept . | . . . . . . . Searches Triggered . | . . . . . . . Construction Impeded . | . . . . . . . Haulers Reinforced . | . . . . . . . Active Scanning Responses . | . . . . . . . Cargo Convoy Interrupts . | . . . . . . . Stealth | -11 -10 -10 -10 -9 -8 -7 --------- Run | Yrd Mat Min Exi Min Mat Fac Distress Signals 1 | . 1 . . . . . Communications Jammed . | . . . . . . . Distress Signals . | . . . . . . . Times Spotted 80 | . 7 3 . . 19 51 Peak Tracking Total 12 | . 6 2 . . 8 12 Tactical Retreats 13 | . . 1 . . . 12 Traps | -11 -10 -10 -10 -9 -8 -7 ------- Run | Yrd Mat Min Exi Min Mat Fac Traps Triggered 2 | . 1 . . . . 1 Indirectly . | . . . . . . . Trap Hack Attempts . | . . . . . . . Triggered . | . . . . . . . Disarmed . | . . . . . . . Reprogrammed . | . . . . . . . Reused 3 | . . . . . . 3 Traps Reconfigurated 4 | . . . . . . 4 Traps Extracted . | . . . . . . . Installed . | . . . . . . . Triggered 3 | . . . . . . 3 Machines | -11 -10 -10 -10 -9 -8 -7 ---------- Run | Yrd Mat Min Exi Min Mat Fac Machines Disabled 1 | . . . . . . 1 Max in Single Turn 1 | . . . . . . 1 Machines Repaired . | . . . . . . . Machines Dismantled . | . . . . . . . Machines Sabotaged . | . . . . . . . Overloaded Fab Kills . | . . . . . . . Hacking | -11 -10 -10 -10 -9 -8 -7 --------- Run | Yrd Mat Min Exi Min Mat Fac Machines Accessed 13 | . 2 . 3 . 4 4 Terminals 8 | . 2 . . . 3 3 Fabricators . | . . . . . . . Repair Stations 1 | . . . . . . 1 Recycling Units . | . . . . . . . Scanalyzers 1 | . . . . . 1 . Garrison Access . | . . . . . . . Total Hacks 24 | . 3 . 3 . 9 9 Successful 16 | . 1 . 3 . 6 6 Failed 8 | . 2 . . . 3 3 Catastrophic . | . . . . . . . Database Lockouts . | . . . . . . . Manual 1 | . . . 1 . . . Terminals 15 | . 3 . . . 7 5 Fabricators . | . . . . . . . Repair Stations 4 | . . . . . . 4 Recycling Units . | . . . . . . . Scanalyzers 2 | . . . . . 2 . Garrison Access . | . . . . . . . Terminal Hacks 10 | . 1 . 3 . 4 2 Record 4 | . . . 2 . 2 . Robot Analysis 1 | . 1 . . . . . Open DSF 1 | . . . . . . 1 Emergency Access Points 1 | . . . . . . 1 Alert Level 1 | . . . . . 1 . Zone Layout 1 | . . . . . 1 . Proto ID Catalog 1 | . . . 1 . . . Fabricator Hacks . | . . . . . . . Repair Station Hacks 4 | . . . . . . 4 Scan Component 2 | . . . . . . 2 Repair 2 | . . . . . . 2 Recycling Unit Hacks . | . . . . . . . Scanalyzer 2 | . . . . . 2 . Insert Component 1 | . . . . . 1 . Analyze 1 | . . . . . 1 . Garrison Access Hacks . | . . . . . . . Unauthorized Hacks . | . . . . . . . Terminals . | . . . . . . . Fabricators . | . . . . . . . Repair Stations . | . . . . . . . Recycling Units . | . . . . . . . Scanalyzers . | . . . . . . . Garrison Access . | . . . . . . . Data Cores Recovered . | . . . . . . . Used . | . . . . . . . Hacking Detections 5 | . 1 . . . 1 3 Full Trace Events 1 | . . . . . . 1 Feedback Events 1 | . . . . . . 1 Corruption 1 | . . . . . . 1 Feedback Blocked . | . . . . . . . Robot Schematics Acquired . | . . . . . . . Robots Built . | . . . . . . . Authchips . | . . . . . . . Time . | . . . . . . . Total Robot Build Rating . | . . . . . . . Part Schematics Acquired 1 | . . . . . 1 . Parts Built . | . . . . . . . Authchips . | . . . . . . . Time . | . . . . . . . Total Part Build Rating . | . . . . . . . Parts Repaired 2 | . . . . . . 2 Time 76 | . . . . . . 76 Parts Recycled . | . . . . . . . Recycled Matter . | . . . . . . . Retrieved Matter . | . . . . . . . Retrieved Components . | . . . . . . . Parts Scanalyzed 1 | . . . . . 1 . Part Schematics Acquired 1 | . . . . . 1 . Parts Damaged . | . . . . . . . Bothacking | -11 -10 -10 -10 -9 -8 -7 ------------ Run | Yrd Mat Min Exi Min Mat Fac Used RIF Installer . | . . . . . . . Robots Hacked . | . . . . . . . Non-combat . | . . . . . . . Combat . | . . . . . . . Robot Hacks Applied . | . . . . . . . Relay Couplers Released . | . . . . . . . Fabnet Peak Effective % . | . . . . . . . Robots Rewired . | . . . . . . . Allies Hacked . | . . . . . . . Hacks Repelled . | . . . . . . . Allies | -11 -10 -10 -10 -9 -8 -7 -------- Run | Yrd Mat Min Exi Min Mat Fac Total Allies 3 | . . . . 3 . . Largest Group 3 | . . . . 3 3 . Highest-Rated Group 40 | . . . . 40 40 . Highest-Rated Ally 16 | . . . . 16 16 . Total Orders . | . . . . . . . Ally Attacks 18 | . . . . . 18 . Total Damage 162 | . . . . . 162 . Kills 2 | . . . . . 2 . Allies Corrupted . | . . . . . . . Allies Melted . | . . . . . . . Intel | -11 -10 -10 -10 -9 -8 -7 ------- Run | Yrd Mat Min Exi Min Mat Fac Active Infowar (turns) 3016 | 13 248 424 451 41 984 855 Optics 814 | . . . . . . 814 Terrain 2157 | 9 248 424 451 41 984 . Seismic 1051 | 13 248 424 366 . . . ECM 44 | . . . . . . 44 Robot Analysis Total 1 | . 1 . . . . . Derelict Logs Recovered 2 | . . 1 . 1 . . Drone Launches . | . . . . . . . Drone Recoveries . | . . . . . . . Exploration | -11 -10 -10 -10 -9 -8 -7 ------------- Run | Yrd Mat Min Exi Min Mat Fac Turns Passed 3455 | 95 248 424 451 41 1216 980 Spaces Moved 2492 | 45 169 323 561 37 630 727 Core 101 | 4 . . . . . 97 Treads . | . . . . . . . Legs 457 | 41 169 247 . . . . Wheels 1773 | . . 76 561 37 630 469 Hover 98 | . . . . . . 98 Flight 63 | . . . . . . 63 Fastest Speed 35 | 50 120 80 80 80 80 35 Average Speed 93 | 113 120 110 80 80 91 90 Slowest Speed 350 | 120 120 120 80 80 100 350 Overloaded Moves . | . . . . . . . Propulsion Burnouts . | . . . . . . . Robots Hopped . | . . . . . . . Potential Cave-ins . | . . . . . . . Cave-ins Triggered . | . . . . . . . Exploration Rate (%) 35 | 5 38 43 91 9 39 23 Regions Visited 6 Branch Regions 3 Pre-discovered Areas 1 | . . 1 . . . . Known Exits Taken . | . . . . . . . Unknown Exits Taken 6 | 1 1 1 1 1 1 . Scrap Searched 1 | . . 1 . . . . Spaces Dug . | . . . . . . . Terrain Destroyed 7 | 2 . . . . 5 . Melee . | . . . . . . . Projectile 1 | . . . . . 1 . AOE 6 | 2 . . . . 4 . Terrain Rammed . | . . . . . . . Walls Destroyed . | . . . . . . . Machines Disabled . | . . . . . . . Actions | -11 -10 -10 -10 -9 -8 -7 --------- Run | Yrd Mat Min Exi Min Mat Fac Total 3537 | 85 202 388 562 48 1228 1024 Wait 874 | 22 24 46 . 12 526 244 Move 2486 | 44 168 322 560 36 629 727 Hop . | . . . . . . . Pick Up 43 | 9 3 6 . . 12 13 Fast Attach 16 | . . . 1 . 5 10 Attach 33 | 6 1 2 . . 11 13 Detach 1 | . . . . . . 1 Swap 5 | . . 5 . . . . Drop 26 | . . 5 1 . 17 3 Fire 45 | 4 6 1 . . 22 12 Melee . | . . . . . . . Ram 7 | . . . . . 6 1 Kick 1 | . . 1 . . . . Crush . | . . . . . . . Escape Stasis . | . . . . . . . Rewire . | . . . . . . . Trap . | . . . . . . . Miscellaneous . | . . . . . . . Route ------- -11/Scrapyard -10/Materials -10/Mines (discovered 2 exits: *Exi / [*Sub]) -10/Exiles -9/Mines -8/Materials -7/Factory History --------- Turn | Location | Event 33 | -11/Scrapyard | Discovered new exit (range 15) 96 | -11/Scrapyard | Entered Materials 309 | -10/Materials | Build established: Mutant 334 | -10/Materials | Discovered new exit (range 9) 344 | -10/Materials | Entered Mines 349 | -10/Mines | Met a Derelict bent on vengeance 422 | -10/Mines | Deemed a non-threat by the Exiles lab entrance 422 | -10/Mines | Discovered new exit (range 5) 455 | -10/Mines | Learned location of Mines (-9) 490 | -10/Mines | Joined a pair of Derelicts in attacking an 0b10 outpost 600 | -10/Mines | Discovered new exit (range 13) 768 | -10/Mines | Entered Exiles 789 | -10/Exiles | Met 8R-AWN 803 | -10/Exiles | Met EX-HEX 807 | -10/Exiles | Build established: Scavenger-Mutant 838 | -10/Exiles | Met EX-DEC 868 | -10/Exiles | Visited The Gauntlet 1005 | -10/Exiles | Discovered new exit (range 10) 1069 | -10/Exiles | Met EX-BIN 1084 | -10/Exiles | Aligned with FarCom system 1085 | -10/Exiles | Given EX-Vault access code 1134 | -10/Exiles | Opened EX-Vault 1139 | -10/Exiles | Found Prototype Device 1139 | -10/Exiles | Identified Trap Reconfigurator 1157 | -10/Exiles | Warned to stay clear of 0b10 Research branches 1219 | -10/Exiles | Left Exiles lab with Trap Reconfigurator 1219 | -10/Exiles | Entered Mines 1220 | -9/Mines | Assisted by bots powering up and referring to "LRC-V3" 1231 | -9/Mines | Learned Materials stockpile data 1235 | -9/Mines | Discovered new exit (range 13) 1260 | -9/Mines | Entered Materials 1260 | -8/Materials | Accompanied by 3 allies 1260 | -8/Materials | Evolved 4 slots: Power x1, Propulsion x1, Utility x1, Weapon x1 1614 | -8/Materials | Build established: Skirmisher 1695 | -8/Materials | Lost 3 allies 2258 | -8/Materials | Garrison activated, responded to threat 2473 | -8/Materials | Discovered new exit (range 3) 2476 | -8/Materials | Entered Factory 2476 | -7/Factory | Evolved 2 slots: Utility x2 2554 | -7/Factory | Repaired Imp. Light Armor Plating 2594 | -7/Factory | Repaired Nuclear Core 2985 | -7/Factory | Lost 7 parts (1p1n2u3w) 3200 | -7/Factory | Build established: Mutant 3242 | -7/Factory | Core integrity fell below 50% 3332 | -7/Factory | Lost 7 parts (1p3n1u2w) 3442 | -7/Factory | Core integrity fell below 20% 3444 | -7/Factory | Lost 6 parts (1p3n2u) 3456 | -7/Factory | Destroyed by G-47 Trooper with Particle Gun Last Messages --------------- 03391_ Slug penetrates Wall. 03391_ Critical hit (Burn: +37). 03391_ Targeting Computer destroyed. 03394_ Slug penetrates Wall. 03396_ T-07 Excavator destroyed. 03412_ 6JFZ# 03443_ Penetrated by Slug. 03446_ K-01 Serf collects debris. Map ----- +----------------------------------------------------+ | ?????????????????????????????????? | | ?????????????????????????????????? | | ?????????????????????????????????? | | ?????????????????????????????????? | | ?????????????????????????????????? | | ?????????????????????????????????? | | ?????????????????????????????????? | | ?????????????????????????????????? | | ?????????????????????????????????? | | ?????????????????????????????????? | | ?????????????????????????????????? | | ?????????????????????????????????? | | ?????????????+???????????????????? | | ??????????? #???????????????????? | | ??????????? #???????????????????? | | ??????????? #???????????????????? | | ??????????? #???????????????????? | | ?????????? #???????????????????? | | ?????????? #???????????????????? | | ?????????? r#???????????????????? | | ?????????? #???????????????????? | | ?????????? #???????????????????? | | ?????????? #???????????????????? | | ?????????? #???????????????????? | | ????????## a ##??????????????????? | | ?? "????#@ +??????????????????? | | ? """??# kg#??????????????????? | | # """ # +??????????????????? | | # + #??????????????????? | | # """ # #??????????????????? | | ? """??# #??????????????????? | | ?? "????# #??????????????????? | | ????????# #??????????????????? | | ????????# k #?????????Y????????? | | ????????# ##############?????? | | ????????# # #?????? | | ????????# #"" ####### | | ????????# #"T # | | ????????# #"" """" # """ | | ????????# # """" # "F" | | ????????# # """" + " | | ????????# # """" # """ " | | ???????## + # """ " | | ???????# # ! # " | | ???????#T # # | | ???????## #################"## | | ????????# | | ????????# | | #####???# %%| | | # ??# = | +----------------------------------------------------+ Best States ------------- Heat Dissipation 48 Energy Generation 23 Energy Capacity 420 Matter Stores 300 Matter Capacity 300 Sight Range 20 Terrain Scan Range 16 Terrain Scan Density 10 ECM Strength 2 Armor Coverage 450 Evasion (%) 63 Targeting Accuracy 5 Item Schematics ----------------- Arm. Wheel | -8/Materials | Scanalyzed Robot Schematics ------------------ None Fabricated ------------ Nothing Repaired ---------- Imp. Light Armor Plating | 37% | -7/Factory Nuclear Core | 48% | -7/Factory Alien Tech Used ----------------- None Achievements -------------- Novice Programmer Troublemaker Challenges ------------ None Game ------ Seed BlastChargeNanovents Manual? 0 Play Time 00:56:22 Cumulative 21.0 hours Start 2025.08.28 @ 19:21:56 End 2025.08.28 @ 20:20:23 Sessions 1 Manual Loads 0 Difficulty Rogue Special Mode None Game No. 36 Rogue 36 Adventurer 0 Explorer 0 Win Type - Total 0 Types 0/0/0/0/0/0/0/0/0/0 Lore% 14 Gallery% 22 Achievement% 21 Wizard Run 0 Options --------- Layout 1 ASCII 0 Keyboard 0 Movement Mouse Keybinds 0 Fullscreen 2 Font 24/Smallcaps Map View 50x35 Zoom Use 0% Tactical HUD 1 Map Filters NONE Filters NONE Steam 1 RUN: 30e82fb5-c56a-45be-8a07-d0ce88ea0a76